bitfinex/quotes_ETHUSD_20251026
["timestamp","ask_amount","ask_price","bid_price","bid_amount"]
[1761482932185,1e-08,4063.0,4062.9,5.0371574]
[1761482932381,1e-08,4063.0,4062.9,4.16430907]
[1761482932675,1e-08,4063.0,4062.9,4.13969611]
[1761482933200,1e-08,4063.0,4062.9,4.76389141]
[1761482933389,1e-08,4063.0,4062.9,5.34989141]
[1761482933596,1e-08,4063.0,4062.9,7.16524353]
[1761482933905,1e-08,4063.0,4062.9,6.7039652]
[1761482934405,1e-08,4063.0,4062.9,5.85677141]
[1761482938609,1e-08,4063.0,4062.9,7.60675314]
[1761482938905,1e-08,4063.0,4062.9,5.85677141]
[1761482939497,1e-08,4063.0,4062.9,5.39397141]
[1761482939682,1e-08,4063.0,4062.9,5.85677141]
[1761482941805,0.001,4063.9,4062.9,6.49925703]
[1761482941806,1e-08,4063.9,4062.9,6.49925703]
[1761482942007,0.224,4065.6,4065.5,2.45972205]
[1761482942312,0.224,4065.6,4065.1,4.88904082]
[1761482942486,0.224,4065.6,4065.5,4.13812205]
[1761482943013,0.6415,4065.6,4065.5,4.13812205]
[1761482943599,0.001,4065.8,4065.5,4.13812205]
[1761482943600,0.001,4065.8,4065.6,1.5552]
[1761482943798,0.001,4065.8,4065.5,0.1232]
[1761482944001,0.4609,4065.7,4065.5,0.1232]
[1761482944389,0.4609,4065.7,4065.5,1.6784]
[1761482944592,0.4609,4065.7,4065.6,2.45966155]
[1761482944981,0.001,4065.8,4065.7,2.45960105]
[1761482945489,0.001,4065.8,4065.7,5.67165194]
[1761482945693,0.001,4065.8,4065.7,6.64393194]
[1761482945991,0.001,4065.8,4065.7,2.55228005]
[1761482946297,0.4165,4065.8,4065.7,1.6784]
[1761482947089,0.001,4065.8,4065.7,4.83310258]
[1761482947294,0.001,4065.8,4065.7,5.39236379]
[1761482948103,0.001,4065.8,4065.7,4.88548379]
[1761482948282,0.001,4065.8,4065.7,4.01480105]
[1761482948483,0.001,4065.8,4065.7,1.5552]
[1761482948680,0.4146,4065.8,4065.0,0.87068274]
[1761482948886,0.4146,4065.8,4064.7,0.87068274]
[1761482949185,0.4146,4065.8,4064.8,0.50688]
[1761482949384,0.4146,4065.8,4064.9,4.01528511]
[1761482949579,0.4146,4065.8,4065.0,1.5552]
[1761482949784,0.4146,4065.8,4064.6,0.1746]
[1761482949785,2.45972572,4065.5,4064.4,3.33104504]
[1761482950009,2.87414185,4065.8,4064.4,0.87068274]
[1761482950010,0.4146,4065.8,4064.4,0.87068274]
[1761482950211,0.4146,4065.8,4064.3,0.87068274]
[1761482950212,2.87131957,4065.7,4064.3,0.87068274]
[1761482950389,2.87131957,4065.7,4063.8,0.1627]
[1761482950390,2.45966155,4065.6,4064.4,2.46038164]
[1761482950596,2.45978255,4065.4,4064.3,2.4604365]
[1761482950793,0.4117,4065.5,4064.4,2.46038775]
[1761482950993,2.87118542,4065.4,4064.5,2.46031895]
[1761482951286,2.45997134,4065.1,4064.4,2.46036147]
[1761482951815,0.1847,4064.5,4063.8,0.87068274]
[1761482951985,0.4524,4064.4,4064.2,2.46048005]
[1761482952185,0.4524,4064.4,4064.3,2.46044829]
[1761482952592,0.4524,4064.4,4063.8,0.87068274]
[1761482952789,0.4524,4064.4,4063.9,0.0246069]
[1761482953026,0.4524,4064.4,4063.5,0.87068274]
[1761482953027,0.1847,4064.5,4063.6,4.04062373]
[1761482953215,0.1847,4064.5,4064.4,2.46038775]
[1761482953601,0.1847,4064.5,4064.1,1.5552]
[1761482953803,0.6348,4064.5,4064.2,2.46048948]
[1761482954019,0.1847,4064.5,4063.7,0.99801065]
[1761482954223,0.1847,4064.5,4064.4,2.46038775]
[1761482954925,0.6348,4064.5,4064.4,2.46038775]
[1761482955709,0.2158,4065.0,4064.4,2.46038775]
[1761482955710,0.6249,4065.0,4064.9,2.46008511]
[1761482955911,0.4091,4065.4,4064.9,2.46008511]
[1761482956106,0.2178,4065.3,4064.9,2.46008511]
[1761482956298,0.2178,4065.3,4065.2,2.45990357]
[1761482956493,0.2262,4065.7,4065.1,2.45993718]
[1761482956730,0.2262,4065.7,4064.7,1.5552]
[1761482956928,0.625,4065.7,4065.3,2.45979518]
[1761482957129,0.625,4065.7,4064.8,0.44802465]
[1761482957130,0.625,4065.7,4065.6,0.1232]
[1761482959524,3.08460105,4065.7,4065.6,0.1232]
[1761482959726,2.45968425,4065.6,4065.4,0.1232]
[1761482959931,2.85848425,4065.6,4065.4,0.1232]
[1761482960154,0.3988,4065.5,4065.4,0.1232]
[1761482963230,2.85852205,4065.5,4065.4,0.1232]
[1761482963848,0.3988,4065.5,4065.4,0.1232]
[1761482964017,0.2262,4065.7,4065.5,1.5552]
[1761482964225,0.625,4065.7,4065.6,0.02459661]
[1761482964528,0.625,4065.7,4065.4,0.1232]
[1761482964529,0.2262,4065.7,4065.5,2.45968041]
[1761482964704,0.001,4065.8,4065.7,4.01480105]
[1761482965059,0.001,4065.8,4065.7,1.5552]
[1761482965060,0.4533,4065.8,4065.7,1.5552]
[1761482967955,0.001,4065.8,4065.7,1.5552]
[1761482968641,0.4533,4065.8,4065.7,1.5552]
[1761482969020,0.001,4065.8,4065.7,0.1232]
[1761482969317,0.4533,4065.8,4065.7,0.1232]
[1761482970520,0.001,4065.8,4065.7,0.1232]
[1761482970727,0.001,4065.8,4065.7,4.13800105]
[1761482970953,0.001,4065.8,4065.7,4.16259706]
[1761482972039,0.001,4065.8,4065.7,4.96259706]
[1761482972440,0.001,4065.8,4065.7,4.93800105]
[1761482973424,0.001,4065.8,4065.7,5.78943545]
[1761482973625,0.001,4065.8,4065.7,5.76483944]
[1761482974121,0.001,4065.8,4065.7,6.22963944]
[1761482975264,0.001,4065.8,4065.7,6.61331944]
[1761482975467,0.001,4065.8,4065.7,6.91485947]
[1761482975626,0.001,4065.8,4065.7,6.61331944]
[1761482977651,0.001,4065.8,4065.7,8.35556489]
[1761482978045,0.0746,4065.8,4065.7,8.35556489]
[1761482978259,0.0746,4065.8,4065.7,6.61331944]
[1761482979170,0.0746,4065.8,4065.7,8.35556489]
[1761482979348,0.0746,4065.8,4065.7,6.61331944]
[1761482980171,0.001,4066.3,4066.2,2.9661786]
[1761482980374,0.001,4066.3,4066.2,4.55705435]
[1761482981059,0.001,4066.3,4066.2,4.58164733]
[1761482981259,0.001,4066.3,4066.2,6.32932293]
[1761482981562,0.001,4066.3,4066.2,5.50633435]
[1761482983546,0.001,4066.3,4066.2,5.06393435]
[1761482983742,0.001,4066.3,4066.2,5.50633435]
[1761482985180,0.001,4066.3,4066.2,5.62953435]
[1761482985975,0.001,4066.3,4066.2,5.18713435]
[1761482987082,0.001,4066.3,4066.2,5.62953435]
[1761482987643,0.001,4066.3,4066.2,7.25712849]
[1761482987849,0.001,4066.3,4066.2,7.13392849]
[1761482989399,0.001,4066.3,4066.2,7.74015325]
[1761482989552,3.342e-05,4066.3,4066.2,7.74015325]
[1761482989749,3.342e-05,4066.3,4066.2,9.97289579]
[1761482989949,0.001,4068.7,4068.6,2.4578479]
[1761482990171,0.001,4068.7,4068.2,2.45808102]
[1761482990479,0.4351,4068.7,4068.5,2.45789896]
[1761482990669,0.4351,4068.7,4068.6,2.4578479]
[1761482990983,0.4351,4068.7,4068.4,2.4579623]
[1761482991153,0.001,4068.7,4068.5,2.45787687]
[1761482991482,0.4351,4068.7,4068.0,1.5552]
[1761482991647,0.4351,4068.7,4068.3,2.45802676]
[1761482992505,0.4351,4068.7,4068.6,2.9647279]
[1761482992506,0.001,4068.7,4068.6,2.9647279]
[1761482992804,0.001,4069.2,4069.1,5.99662589]
[1761482992968,0.001,4070.8,4069.3,1.477]
[1761482993278,0.001,4070.8,4069.2,1.8011]
[1761482993279,0.2221,4070.7,4070.2,2.45688172]
[1761482993455,0.001,4070.8,4070.2,4.54353053]
[1761482993661,0.001,4070.8,4070.2,5.61002577]
[1761482993877,0.001,4070.8,4070.2,4.96136172]
[1761482994077,0.001,4070.8,4070.2,5.82759488]
[1761482994252,0.001,4070.8,4070.2,6.38959749]
[1761482994448,0.001,4070.8,4070.2,7.68894724]
[1761482994896,0.001,4070.8,4070.2,5.64251276]
[1761482995185,0.001,4070.8,4070.2,6.08491276]
[1761482995361,0.001,4070.8,4070.2,6.73156915]
[1761482996297,0.001,4070.8,4070.2,4.96136172]
[1761482996480,0.001,4070.8,4070.2,4.98593053]
[1761482996667,0.001,4070.8,4070.2,4.51896172]
[1761482996983,0.001,4070.8,4070.2,4.98593053]
[1761482997700,0.001,4070.8,4070.2,5.10913053]
[1761482997895,0.001,4070.8,4070.2,5.85863277]
[1761482998989,0.001,4070.8,4070.2,5.41623277]
[1761482999283,0.001,4070.8,4070.2,4.64216172]
[1761482999484,0.001,4070.8,4070.2,4.66673053]
[1761483000058,0.4327,4070.3,4069.4,0.64665639]
[1761483000258,0.4327,4070.3,4068.9,0.64665639]
[1761483000259,0.2224,4069.5,4068.9,0.64665639]
[1761483000460,0.001,4070.3,4069.0,0.02457606]
[1761483000659,0.001,4070.3,4069.2,1.5552]
[1761483000880,0.001,4070.3,4070.2,2.45688172]
[1761483001079,0.001,4070.3,4069.3,0.4424]
[1761483001283,0.001,4070.3,4069.6,0.50688]
[1761483001481,0.001,4070.3,4070.2,4.51896172]
[1761483002257,0.001,4070.3,4070.2,4.98773053]
[1761483003385,0.001,4070.3,4070.2,4.96316172]
[1761483003584,0.001,4070.3,4070.2,4.51896172]
[1761483003801,0.001,4070.3,4070.2,5.21901128]
[1761483004001,0.001,4070.3,4070.2,4.51896172]
[1761483004594,0.001,4070.3,4070.2,4.98773053]
[1761483006194,0.001,4070.3,4070.2,6.46473053]
[1761483006414,0.001,4070.3,4070.2,6.74484645]
[1761483006618,0.001,4070.3,4070.2,7.60816016]
[1761483006828,0.001,4070.3,4070.2,8.5622086]
[1761483007310,0.001,4070.3,4070.2,7.69889489]
[1761483007510,0.001,4070.3,4070.2,8.55818852]
[1761483007680,0.001,4070.3,4070.2,7.69889489]
[1761483008082,0.001,4070.3,4070.2,8.25349523]
[1761483008283,0.001,4070.3,4070.2,7.39421016]
[1761483008916,0.001,4070.3,4070.0,0.85928507]
[1761483009078,0.001,4070.3,4069.1,0.91878473]
[1761483009079,0.4703,4070.3,4069.1,0.1865]
[1761483009280,0.4703,4070.3,4069.2,1.5552]
[1761483009614,0.4703,4070.3,4069.3,0.02457425]
[1761483010021,0.4703,4070.3,4069.3,2.48199293]
[1761483010194,0.001,4070.3,4070.2,0.1232]
[1761483010520,0.001,4070.3,4070.0,2.45695794]
[1761483010714,0.001,4070.3,4070.2,4.51896172]
[1761483011016,0.001,4070.3,4070.2,1.5552]
[1761483011377,0.001,4070.3,4070.2,4.01208172]
[1761483011981,0.001,4070.3,4070.2,1.5552]
[1761483012176,0.001,4070.3,4070.2,4.01208172]
[1761483012412,0.001,4070.3,4070.2,4.41329588]
[1761483012590,0.4674,4070.3,4070.2,1.5552]
[1761483012915,0.001,4070.3,4070.2,4.37367479]
[1761483013212,0.001,4070.3,4070.2,4.51896172]
[1761483013525,0.001,4070.3,4070.2,1.5552]
[1761483014095,0.001,4070.3,4070.2,4.51896172]
[1761483014290,0.001,4070.3,4070.2,5.21655724]
[1761483014491,0.001,4070.3,4070.2,4.01208172]
[1761483014692,0.4645,4070.3,4070.2,4.01208172]
[1761483015400,0.001,4070.3,4070.2,4.01208172]
[1761483015782,0.001,4070.3,4070.2,4.54353053]
[1761483016413,0.001,4070.3,4070.2,5.6158176]
[1761483016616,0.001,4070.3,4070.2,8.32375524]
[1761483016795,0.001,4070.3,4070.2,7.46447017]
[1761483017305,0.001,4070.3,4070.2,5.55987017]
[1761483017835,0.001,4070.3,4070.2,4.01208172]
[1761483017836,0.459,4070.3,4070.2,4.01208172]
[1761483018131,0.001,4070.3,4070.2,4.01208172]
[1761483018347,0.001,4070.3,4070.2,4.25798172]
[1761483018515,0.001,4070.3,4070.2,4.01208172]
[1761483019453,0.001,4070.3,4070.2,4.66136792]
[1761483019736,0.001,4070.3,4069.2,0.6492862]
[1761483019737,0.459,4070.3,4069.2,0.6492862]
[1761483019894,0.2247,4069.3,4069.2,3.1067717]
[1761483020329,0.2247,4069.3,4069.2,4.77886126]
[1761483020734,0.001,4070.3,4069.2,4.77886126]
[1761483020735,0.001,4070.3,4069.3,2.4574251]
[1761483021030,0.001,4070.3,4070.2,2.45688172]
[1761483021434,0.001,4070.3,4070.2,4.03665053]
[1761483021603,0.001,4070.3,4070.2,5.33600028]
[1761483021800,0.001,4070.3,4070.2,6.09072836]
[1761483022001,0.001,4070.3,4070.2,6.59760836]
[1761483022213,0.001,4070.3,4070.2,5.72585861]
[1761483022907,0.001,4070.3,4070.2,5.29825861]
[1761483023635,0.001,4070.3,4070.2,4.79137861]
[1761483023831,0.001,4070.3,4070.2,4.81594742]
[1761483024331,0.001,4070.3,4070.2,4.79137861]
[1761483024496,0.001,4070.3,4070.2,4.01208172]
[1761483026163,0.001,4070.3,4070.2,4.51896172]
[1761483028342,0.001,4070.3,4070.2,4.25798172]
[1761483028639,0.001,4070.3,4070.2,4.01208172]
[1761483028940,0.001,4070.3,4070.2,4.85702644]
[1761483029141,0.4676,4070.3,4070.2,4.01208172]
[1761483030514,0.4676,4070.3,4070.1,0.002]
[1761483030515,0.4676,4070.3,4070.1,1.30639877]
[1761483030713,0.4676,4070.3,4070.1,0.002]
[1761483030919,0.4676,4070.3,4070.2,0.1232]
[1761483031436,0.4676,4070.3,4070.2,4.13528172]
[1761483031840,0.4676,4070.3,4070.2,1.6784]
[1761483032046,0.4676,4070.3,4070.1,0.002]
[1761483032348,2.45688172,4070.2,4070.1,0.002]
[1761483032516,3.00733002,4070.2,4070.1,0.002]
[1761483032722,3.47393002,4070.2,4070.1,0.002]
[1761483033461,2.4571232,4069.8,4069.7,0.002]
[1761483033684,2.45736472,4069.4,4069.3,0.002]
[1761483033825,0.49146468,4069.4,4069.3,0.002]
[1761483034024,2.92496472,4069.4,4069.3,0.002]
[1761483034229,0.4676,4069.4,4069.3,0.002]
[1761483035163,2.92496472,4069.4,4069.3,0.002]
[1761483035461,0.4676,4069.4,4069.3,0.002]
[1761483035629,0.76008561,4069.4,4069.3,0.002]
[1761483036728,0.4676,4069.4,4069.3,0.002]
[1761483038269,2.92496472,4069.4,4069.3,0.802]
[1761483038762,0.4676,4069.4,4069.3,0.802]
[1761483039337,2.45717651,4069.8,4069.3,4.8146251]
[1761483039338,0.4467,4069.8,4069.3,4.8146251]
[1761483039535,0.4467,4069.7,4069.3,2.3572]
[1761483040133,0.3731,4069.7,4069.6,2.45724395]
[1761483040537,0.3731,4069.7,4069.3,0.802]
[1761483041358,0.3741,4069.7,4069.3,0.802]
[1761483041545,2.45726188,4069.6,4069.3,0.802]
[1761483042170,0.001,4069.7,4069.3,0.802]
[1761483042469,0.3219,4069.5,4069.3,0.802]
[1761483042835,2.77926093,4069.5,4069.3,0.802]
[1761483043347,2.72477707,4069.7,4069.3,0.802]
[1761483043348,0.3219,4069.4,4069.3,0.802]
[1761483043538,0.3219,4069.4,4069.3,4.8146251]
[1761483043733,0.3219,4069.4,4069.3,0.802]
[1761483043933,0.4451,4069.4,4069.3,0.802]
[1761483044173,2.90246472,4069.4,4069.3,0.802]
[1761483044348,3.43853868,4069.4,4069.3,0.802]
[1761483048783,0.3219,4069.4,4069.3,0.802]
[1761483050563,0.001,4069.7,4069.3,0.802]
[1761483050764,0.001,4069.7,4069.3,2.3572]
[1761483050765,0.3229,4069.7,4069.3,2.3572]
[1761483050968,2.7800855,4069.7,4069.3,0.802]
[1761483051469,0.3219,4069.6,4069.3,0.802]
[1761483053857,0.3219,4069.6,4069.3,3.25942462]
[1761483054193,0.001,4069.7,4069.6,2.45724395]
[1761483054379,0.001,4069.7,4069.6,4.01244395]
[1761483054556,0.001,4069.7,4069.6,4.44414395]
[1761483054757,0.001,4069.7,4069.6,4.46871638]
[1761483055378,0.001,4069.7,4069.6,4.71461638]
[1761483055582,0.001,4069.7,4069.6,6.77367519]
[1761483055782,0.001,4069.7,4069.6,5.87720025]
[1761483055992,0.001,4069.7,4069.6,5.44470399]
[1761483056562,0.001,4069.7,4069.6,5.69060399]
[1761483057196,0.001,4069.7,4069.6,5.01300399]
[1761483057401,0.001,4069.7,4069.6,5.44470399]
[1761483057699,0.001,4069.7,4069.6,5.69060399]
[1761483058197,0.001,4069.7,4069.6,5.25890399]
[1761483058394,0.001,4069.7,4069.6,6.74910276]
[1761483058789,0.001,4069.7,4069.6,6.87230276]
[1761483059191,0.001,4069.7,4069.6,5.56790399]
[1761483059600,0.001,4069.7,4069.6,6.86589971]
[1761483059978,0.001,4069.7,4069.6,5.56790399]
[1761483060375,0.001,4069.7,4069.6,5.13620399]
[1761483060602,0.001,4069.7,4069.6,6.43436008]
[1761483060775,0.4477,4069.7,4069.5,1.29815609]
[1761483060977,0.4477,4069.7,4069.3,1.45133148]
[1761483061187,2.45736472,4069.4,4069.3,0.802]
[1761483061601,2.90406472,4069.4,4069.3,0.802]
[1761483062101,2.45766669,4068.9,4068.8,0.002]
[1761483062302,2.67926669,4068.9,4068.8,0.002]
[1761483062611,2.4578479,4068.6,4068.5,0.002]
[1761483062817,2.4578479,4068.6,4066.7,0.64933148]
[1761483062818,2.45814999,4068.1,4066.7,0.64933148]
[1761483063017,2.45814999,4068.1,4065.3,0.4518]
[1761483063018,2.45839172,4067.7,4066.3,0.64933148]
[1761483063311,2.45839172,4067.7,4066.1,0.64933148]
[1761483063510,2.92759172,4067.7,4066.1,0.64933148]
[1761483063712,0.4692,4067.7,4066.2,0.64933148]
[1761483063914,2.92759172,4067.7,4066.3,0.64933148]
[1761483064105,2.92759172,4067.7,4066.1,0.64933148]
[1761483064300,2.92759172,4067.7,4066.0,0.64933148]
[1761483064512,3.43447172,4067.7,4065.9,0.64933148]
[1761483064719,3.43447172,4067.7,4065.5,0.64933148]
[1761483064720,0.50688,4067.6,4065.5,0.64933148]
[1761483064883,2.45914399,4066.5,4065.6,2.459642]
[1761483065083,2.45914399,4066.5,4065.5,3.10905311]
[1761483065287,0.4677,4066.9,4065.5,0.4518]
[1761483065522,0.4677,4066.9,4065.5,1.10113148]
[1761483065819,2.92657742,4066.9,4065.2,0.64933148]
[1761483066024,2.45910134,4066.6,4065.6,2.45960851]
[1761483066322,0.2236,4067.8,4065.8,2.4595364]
[1761483066323,0.4677,4066.5,4065.8,2.4595364]
[1761483066485,2.45917765,4066.4,4065.2,1.5552]
[1761483066687,2.45917765,4066.4,4065.0,0.64933148]
[1761483066884,0.4677,4066.3,4065.1,0.38867068]
[1761483067511,0.4677,4066.3,4065.6,2.45960497]
[1761483067719,0.4677,4066.3,4065.8,2.45952008]
[1761483067920,0.4677,4066.3,4065.9,2.4594309]
[1761483068426,0.4677,4067.2,4066.0,0.02459419]
[1761483068725,0.4677,4067.2,4066.2,1.7333]
[1761483068888,0.4677,4067.2,4066.6,2.45905223]
[1761483069088,0.4677,4067.2,4066.7,2.45898008]
[1761483069290,0.4677,4067.2,4066.3,1.5552]
[1761483069491,2.45897585,4066.8,4065.6,4.0148603]
[1761483069692,2.70483655,4066.8,4065.4,1.5552]
[1761483069937,2.45910374,4066.6,4065.6,2.45964074]
[1761483070245,2.45910374,4066.6,4065.4,1.5552]
[1761483070246,0.4677,4066.7,4065.4,1.5552]
[1761483070393,0.4677,4066.6,4064.8,0.64933148]
[1761483070598,2.45940441,4066.1,4065.1,2.45990837]
[1761483070822,2.45940441,4066.1,4064.4,3.5417502]
[1761483070823,0.24594044,4066.1,4064.6,0.64933148]
[1761483071028,2.45964888,4065.7,4064.4,0.2156]
[1761483071332,0.4677,4066.0,4064.6,2.46026192]
[1761483071537,0.6904,4065.9,4064.5,2.46032452]
[1761483071697,0.4683,4065.8,4064.4,2.46038679]
[1761483071898,0.4683,4065.8,4064.1,2.46211295]
[1761483072098,2.46002721,4065.0,4064.1,4.01576937]
[1761483072495,0.1515,4064.9,4064.2,4.01567771]
[1761483072697,0.1515,4064.9,4064.1,4.01572462]
[1761483072927,0.1515,4064.9,4063.9,0.002]
[1761483073098,0.6181,4064.9,4063.9,0.002]
[1761483073299,2.46062992,4064.0,4063.9,0.002]
[1761483073497,2.95274739,4064.0,4063.9,0.002]
[1761483073704,3.41934739,4064.0,4063.9,0.002]
[1761483074735,0.95871747,4064.0,4063.9,0.002]
[1761483074937,3.41934739,4064.0,4063.9,0.002]
[1761483075534,0.95871747,4064.0,4063.9,0.002]
[1761483075731,0.4666,4064.6,4063.9,0.002]
[1761483076097,0.1515,4064.9,4063.9,0.002]
[1761483076296,0.1515,4064.9,4064.0,1.5552]
[1761483076495,2.61158864,4064.9,4064.1,2.46052085]
[1761483076694,0.1515,4064.9,4064.2,2.46048869]
[1761483076901,0.6181,4064.9,4064.0,2.46062818]
[1761483077100,2.46014801,4064.8,4064.1,2.46055725]
[1761483077299,0.6181,4064.9,4064.1,2.46055725]
[1761483077300,0.1515,4064.9,4064.1,2.46055725]
[1761483077534,2.4602867,4064.6,4063.9,0.002]
[1761483077761,0.4666,4064.8,4063.9,0.002]
[1761483077963,2.46062992,4064.0,4063.9,0.002]
[1761483078462,2.92722992,4064.0,4063.9,0.002]
[1761483079171,0.4666,4064.0,4063.9,0.002]
[1761483079473,2.92722992,4064.0,4063.9,0.002]
[1761483080042,3.46600387,4064.0,4063.9,0.002]
[1761483080352,0.1515,4064.9,4063.9,0.002]
[1761483080552,0.4666,4064.8,4063.9,0.002]
[1761483080856,0.1232,4064.0,4063.9,0.002]
[1761483081165,2.58382992,4064.0,4063.9,0.00031554]
[1761483081337,0.5898,4064.0,4063.9,0.00031554]
[1761483081666,2.92722992,4064.0,4063.9,0.00031554]
[1761483081853,3.23226721,4064.0,4063.9,0.00031554]
[1761483085441,0.1515,4064.9,4063.9,0.00031554]
[1761483085770,0.4666,4064.8,4063.9,0.00031554]
[1761483086065,2.46020616,4064.7,4063.9,0.00031554]
[1761483086244,0.4666,4064.7,4063.9,0.00031554]
[1761483086452,0.4666,4064.7,4063.9,2.46100118]
[1761483086644,0.4666,4064.7,4063.9,0.00031554]
[1761483086851,2.46039457,4064.4,4063.9,0.00031554]
[1761483087068,0.30781921,4064.6,4063.9,0.00031554]
[1761483087237,0.4666,4064.7,4064.0,2.46059301]
[1761483087439,2.46028845,4064.6,4063.9,0.00031554]
[1761483087635,2.46028845,4064.6,4063.9,2.46100461]
[1761483087857,2.46028845,4064.6,4063.9,0.00031554]
[1761483088465,2.46034418,4064.5,4063.9,0.00031554]
[1761483088664,1.00531526,4064.5,4063.9,0.00031554]
[1761483088861,0.1515,4064.9,4063.9,0.00031554]
[1761483088862,2.46062992,4064.0,4063.9,0.00031554]
[1761483089472,2.92722992,4064.0,4063.9,0.00031554]
[1761483090271,3.43410992,4064.0,4063.9,0.00031554]
[1761483091053,2.96750992,4064.0,4063.9,0.00031554]
[1761483091280,3.47003235,4064.0,4063.9,0.00031554]
[1761483091781,3.59323235,4064.0,4063.9,0.00031554]
[1761483093187,2.46037674,4064.5,4063.9,0.00031554]
[1761483093188,0.4666,4064.5,4063.9,0.00031554]
[1761483093350,0.1232,4064.0,4063.9,2.461006]
[1761483093685,0.1232,4065.2,4064.4,0.1232]
[1761483093847,0.1232,4064.8,4064.2,0.1232]
[1761483094048,2.46020616,4064.7,4063.9,0.00031554]
[1761483094257,0.24602062,4064.7,4063.9,0.00031554]
[1761483094449,0.1232,4064.2,4063.9,0.00031554]
[1761483094853,3.04881149,4064.2,4063.9,0.00031554]
[1761483095362,2.46062992,4064.0,4063.9,0.00031554]
[1761483095685,0.001,4064.0,4063.9,0.00031554]
[1761483096251,2.46162992,4064.0,4063.9,0.00031554]
[1761483096450,0.50553419,4064.0,4063.9,0.00031554]
[1761483096985,0.001,4064.0,4063.9,0.00031554]
[1761483097187,2.46162992,4064.0,4063.9,0.00031554]
[1761483097354,2.92672992,4064.0,4063.9,0.00031554]
[1761483098152,3.43360992,4064.0,4063.9,0.00031554]
[1761483104531,2.92672992,4064.0,4063.9,0.00031554]
[1761483104676,3.46545492,4064.0,4063.9,0.00031554]
[1761483105177,3.45535492,4064.0,4063.9,0.00031554]
[1761483107601,3.00035492,4064.0,4063.9,0.00031554]
[1761483108024,3.45535492,4064.0,4063.9,0.00031554]
[1761483108706,3.96223492,4064.0,4063.9,0.00031554]
[1761483110005,4.08543492,4064.0,4063.9,0.00031554]
[1761483110944,3.12355492,4064.0,4063.9,0.00031554]
[1761483111623,0.1242,4064.0,4063.9,0.00031554]
[1761483111837,2.58482992,4064.0,4063.9,0.00031554]
[1761483113718,2.58482992,4064.0,4063.9,0.45721554]
[1761483114106,0.1242,4064.0,4063.9,0.45721554]
[1761483114438,0.001,4064.0,4063.9,1.25721554]
[1761483115358,0.001,4064.0,4063.9,0.80031554]
[1761483116046,0.001,4064.0,4063.9,1.25721554]
[1761483116442,2.46162992,4064.0,4063.9,0.80031554]
[1761483116646,3.17511291,4064.0,4063.9,0.80031554]
[1761483117455,3.17511291,4064.0,4063.9,0.00031554]
[1761483120221,2.46162992,4064.0,4063.9,0.00031554]
[1761483120460,2.58482992,4064.0,4063.9,0.00031554]
[1761483120826,3.03982992,4064.0,4063.9,0.00031554]
[1761483121020,2.58482992,4064.0,4063.9,0.00031554]
[1761483121659,2.58482992,4064.0,4063.9,0.80031554]
[1761483121839,2.58482992,4064.0,4063.9,0.00031554]
[1761483121840,3.54437487,4064.0,4063.9,0.00031554]
[1761483122038,3.08937487,4064.0,4063.9,0.00031554]
[1761483122237,2.58482992,4064.0,4063.9,0.00031554]
[1761483122439,2.59,4065.2,4063.9,0.00031554]
[1761483122440,0.86678871,4066.1,4064.1,0.78396757]
[1761483122656,0.001,4068.1,4064.1,0.78396757]
[1761483122657,1.76343567,4068.6,4066.1,0.0193]
[1761483122936,0.87264693,4069.8,4066.1,0.0193]
[1761483122937,1.10085785,4070.6,4067.8,3.08497663]
[1761483123262,0.4596,4070.6,4069.2,1.73971362]
[1761483123447,0.1232,4069.4,4069.3,2.48480235]
[1761483123623,0.1232,4069.4,4069.3,0.7473089]
[1761483124026,0.1232,4069.5,4069.3,0.7473089]
[1761483124254,2.58056233,4069.5,4069.4,0.7473089]
[1761483124456,3.13029967,4069.5,4069.4,0.7473089]
[1761483124855,3.13029967,4069.5,4069.4,0.52193405]
[1761483125161,3.58889967,4069.5,4069.4,0.52193405]
[1761483125660,1.13153734,4069.5,4069.4,0.52193405]
[1761483125962,3.13024167,4069.5,4069.4,0.52193405]
[1761483126129,3.58884167,4069.5,4069.4,0.52193405]
[1761483126469,3.58884167,4069.5,4069.4,1.32193405]
[1761483126627,4.09572167,4069.5,4069.4,1.32193405]
[1761483126970,3.58884167,4069.5,4069.4,0.84693405]
[1761483127868,2.4574855,4069.2,4069.1,0.64702056]
[1761483128066,0.50688,4069.1,4068.2,0.86261858]
[1761483128227,2.45805686,4068.3,4068.0,0.86261858]
[1761483128549,2.45808957,4068.2,4068.1,0.86261858]
[1761483128750,2.45800871,4068.4,4068.1,0.86261858]
[1761483128942,2.45808563,4068.3,4068.0,0.86261858]
[1761483129137,2.45772709,4068.8,4067.9,0.86261858]
[1761483129666,2.45821042,4068.0,4067.9,0.86261858]
[1761483129862,2.45821042,4068.0,4067.8,0.86261858]
[1761483130067,2.45827085,4067.9,4067.8,0.86261858]
[1761483130234,2.45833128,4067.8,4067.5,1.29420465]
[1761483130634,2.45839385,4067.7,4067.5,1.29420465]
[1761483130933,2.45827085,4067.9,4067.5,1.29420465]
[1761483131129,2.45827085,4067.9,4067.0,1.5552]
[1761483131130,0.73750754,4072.9,4067.8,1.5552]
[1761483131350,0.73750754,4072.9,4070.1,2.96382208]
[1761483131557,0.2309,4073.6,4071.5,2.45607141]
[1761483131765,2.45519807,4073.0,4072.7,0.85484321]
[1761483132071,0.2309,4073.6,4072.8,1.72136188]
[1761483132227,0.2309,4073.6,4072.7,0.85484321]
[1761483132434,2.6843044,4076.0,4073.5,0.85484321]
[1761483132768,2.6843044,4076.0,4073.3,1.28226482]
[1761483132769,2.45411962,4074.8,4073.9,0.85484321]
[1761483132936,2.45411962,4074.8,4073.8,0.85484321]
[1761483132937,2.4541255,4074.8,4073.8,0.85484321]
[1761483133140,0.24541255,4074.7,4073.9,0.85484321]
[1761483133331,0.2309,4076.5,4074.5,1.70968643]
[1761483133527,0.2309,4076.5,4074.0,1.70968643]
[1761483133528,0.2309,4075.3,4074.0,1.70968643]